bitfinex/quotes_ETHUSD_20240811
["timestamp","ask_amount","ask_price","bid_price","bid_amount"]
[1723339050420,5.36175019,2628.7,2628.0,4.93325]
[1723339050625,5.36175019,2628.7,2628.0,4.93324]
[1723339050836,5.36175019,2628.7,2628.0,7.5968]
[1723339051165,2.66305,2628.6,2628.0,4.93324]
[1723339051460,0.03573673,2628.5,2628.0,7.59679]
[1723339052461,0.03573673,2628.5,2628.1,2.66349]
[1723339052967,2.66293,2628.7,2628.1,2.66349]
[1723339053259,0.03575958,2628.6,2628.1,3.423163]
[1723339054746,0.03575958,2628.6,2628.1,0.759673]
[1723339055347,0.03575958,2628.6,2628.1,3.423163]
[1723339057146,0.03575958,2628.6,2628.1,0.759673]
[1723339057351,5.04174958,2628.6,2628.0,4.93324]
[1723339058180,2.37865958,2628.6,2628.0,7.59677]
[1723339059373,2.37865958,2628.6,2628.1,2.66343]
[1723339059687,0.03575958,2628.6,2628.1,2.66343]
[1723339059888,0.03575958,2628.6,2628.1,3.423096]
[1723339062390,2.66317,2628.5,2627.8,5.01316]
[1723339062689,2.66317,2628.5,2627.8,2.66381]
[1723339062690,2.66339,2628.3,2627.8,2.66381]
[1723339062895,2.69892049,2628.5,2627.9,2.66366]
[1723339063061,2.66294,2628.7,2628.0,3.196287]
[1723339063062,0.03569442,2628.2,2628.0,3.196287]
[1723339063255,8.00598,2628.6,2628.0,2.66354]
[1723339063469,0.03567156,2628.1,2628.0,2.66354]
[1723339063671,8.00598,2628.6,2628.0,2.66354]
[1723339063871,0.03567156,2628.1,2628.0,2.66354]
[1723339064106,8.00598,2628.6,2628.0,3.4312]
[1723339064301,0.03567156,2628.1,2628.0,3.4312]
[1723339064512,8.00598,2628.6,2628.0,3.4312]
[1723339064802,8.00598,2628.6,2628.0,2.66354]
[1723339065017,2.69888698,2628.5,2627.9,5.01306]
[1723339065412,2.69888698,2628.5,2627.9,5.01305]
[1723339065872,2.69888698,2628.5,2627.9,7.67671]
[1723339066072,0.03575698,2628.5,2628.0,3.431201]
[1723339066274,2.66335,2628.3,2627.7,2.66385]
[1723339066874,5.32635,2628.5,2627.7,2.66385]
[1723339067076,3.0,2628.4,2627.8,2.6638]
[1723339067375,3.03840856,2628.4,2627.8,2.6638]
[1723339067774,5.70163856,2628.4,2627.7,5.01325]
[1723339067970,5.70163856,2628.4,2627.7,7.67711]
[1723339067971,5.66323,2628.4,2627.7,7.67711]
[1723339069009,5.66323,2628.4,2627.7,5.01325]
[1723339069172,5.66323,2628.4,2627.7,7.67711]
[1723339069906,2.66334,2628.3,2627.7,5.01325]
[1723339070289,2.66334,2628.3,2627.7,5.780982]
[1723339070483,2.66358,2628.1,2627.5,2.66405]
[1723339070805,2.3429,2628.2,2627.5,2.66405]
[1723339072007,2.3429,2628.2,2627.7,2.66391]
[1723339072510,2.3429,2628.2,2627.7,5.32782]
[1723339072688,2.3429,2628.2,2627.7,3.196692]
[1723339073825,2.3429,2628.2,2627.7,0.532782]
[1723339073996,5.00639,2628.2,2627.5,2.66406]
[1723339074318,2.3429,2628.2,2627.7,2.66385]
[1723339074715,2.3429,2628.2,2627.7,5.32771]
[1723339075086,10.3,2628.4,2627.8,2.66382]
[1723339075291,10.3,2628.4,2627.9,2.66371]
[1723339075527,10.3,2628.4,2627.9,2.66365]
[1723339077231,12.96322,2628.4,2627.9,2.66365]
[1723339077727,10.3,2628.4,2627.9,2.66365]
[1723339077931,3.0,2628.4,2627.9,2.66365]
[1723339080624,5.66323,2628.4,2627.8,2.3322]
[1723339080925,3.0,2628.4,2627.9,2.66366]
[1723339081131,3.0,2628.4,2628.0,2.66361]
[1723339081344,3.0,2628.4,2627.9,2.66366]
[1723339082737,2.4853,2628.5,2627.8,2.8850811]
[1723339082891,2.4853,2628.4,2627.8,2.3322]
[1723339083225,2.4853,2628.4,2627.8,2.66375]
[1723339084098,2.4853,2628.4,2627.9,2.6637]
[1723339085023,2.4853,2628.4,2627.9,2.66366]
[1723339087029,2.4853,2628.4,2627.9,5.32732]
[1723339087233,2.4853,2628.4,2627.9,2.66366]
[1723339087827,13.93994,2628.7,2628.0,0.266366]
[1723339088003,3.0,2628.6,2627.9,2.3322]
[1723339088203,3.0,2628.6,2628.1,2.66345]
[1723339089345,3.0,2628.6,2628.3,2.66329]
[1723339089639,3.0,2628.6,2627.7,3.64089]
[1723339089640,2.66328,2628.4,2627.7,2.66386]
[1723339089804,2.4853,2628.2,2627.7,2.66386]
[1723339090201,3.4623,2628.2,2627.5,2.66407]
[1723339090531,3.0,2628.1,2627.5,2.66407]
[1723339091034,2.66373,2627.9,2627.3,2.66426]
[1723339091235,2.4853,2627.8,2627.3,3.32122609]
[1723339091550,2.4853,2627.8,2627.4,2.66419]
[1723339094364,2.4853,2627.8,2627.3,5.98548609]
[1723339094670,2.4853,2627.8,2627.3,3.32122609]
[1723339095555,2.4853,2627.8,2627.1,2.66452]
[1723339095556,2.66392,2627.7,2627.1,5.32898]
[1723339095716,2.66392,2627.7,2627.1,2.66446]
[1723339096053,2.66392,2627.7,2626.9,2.66469]
[1723339096054,2.66413,2627.5,2626.9,2.66467]
[1723339096215,5.32791,2627.7,2626.9,2.66467]
[1723339096412,2.66392,2627.7,2626.9,3.21910949]
[1723339096843,2.4853,2627.8,2627.1,2.66452]
[1723339097055,5.14914,2627.8,2627.2,2.66441]
[1723339097558,10.3,2628.1,2627.5,2.66411]
[1723339097559,15.21466,2628.1,2627.5,2.66411]
[1723339097719,2.66362,2628.0,2627.5,2.66411]
[1723339098054,3.0,2627.9,2627.3,2.66427]
[1723339098355,5.66374,2627.9,2627.3,3.50921154]
[1723339099163,5.66374,2627.9,2627.3,6.17347154]
[1723339099329,5.66374,2627.9,2627.4,2.6642]
[1723339100235,5.66374,2627.9,2627.3,3.50921154]
[1723339100429,3.0,2627.9,2627.4,2.6642]
[1723339101550,3.0,2627.9,2627.3,3.50921154]
[1723339103070,5.66372,2627.9,2627.3,3.50921154]
[1723339104085,2.66383,2627.8,2627.3,3.50921154]
[1723339104281,2.66383,2627.8,2627.1,4.94784]
[1723339104484,2.66406,2627.6,2627.1,2.66444]
[1723339104877,2.66413,2627.5,2626.9,2.66468]
[1723339105908,2.66426,2627.4,2626.9,2.66468]
[1723339112103,2.66426,2627.4,2626.8,5.54455487]
[1723339112809,2.66426,2627.4,2626.8,4.94823]
[1723339114902,5.32856,2627.4,2626.8,4.94823]
[1723339115415,2.66426,2627.4,2626.8,4.94823]
[1723339115619,2.4982,2627.3,2626.6,2.3126]
[1723339115820,2.66443,2627.2,2626.5,2.66508]
[1723339116218,2.66443,2627.2,2626.6,2.66502]
[1723339116426,2.66443,2627.2,2626.6,3.18837632]
[1723339120549,2.66443,2627.2,2626.6,5.85339632]
[1723339120844,2.66443,2627.2,2626.6,3.18837632]
[1723339123349,3.4762,2627.3,2626.7,2.66487]
[1723339124033,3.4762,2627.3,2626.8,2.66481]
[1723339124511,6.14056,2627.3,2626.8,2.66481]
[1723339127060,2.66449,2627.2,2626.6,3.18832632]
[1723339128569,3.4762,2627.3,2626.7,3.08148263]
[1723339128854,7.3,2627.4,2626.8,4.97738]
[1723339129029,3.0,2627.3,2626.9,2.66466]
[1723339129230,3.0,2627.3,2626.9,3.56832726]
[1723339129762,7.3,2627.4,2626.9,0.97980141]
[1723339129972,7.3,2627.4,2626.9,0.978]
[1723339130174,7.3,2627.4,2626.8,4.97737]
[1723339130377,3.0,2627.3,2626.8,4.97737]
[1723339130743,3.0,2627.3,2626.8,4.97736]
[1723339131076,5.66441,2627.3,2626.8,2.3126]
[1723339131369,5.66441,2627.3,2626.6,7.64256]
[1723339131574,2.4982,2627.2,2626.6,7.64255]
[1723339132141,5.16263,2627.2,2626.6,4.97757]
[1723339132376,5.16263,2627.2,2626.6,7.64254]
[1723339133400,5.16263,2627.2,2626.6,4.97757]
[1723339136273,5.16263,2627.2,2626.7,2.66492]
[1723339142581,2.4982,2627.2,2626.7,5.32977]
[1723339143374,2.4982,2627.2,2626.7,2.66485]
[1723339145799,5.16265,2627.2,2626.7,2.66485]
[1723339149381,2.4982,2627.2,2626.7,2.66485]
[1723339149612,2.4982,2627.2,2626.7,6.15955025]
[1723339149909,2.4982,2627.2,2626.7,3.49467025]
[1723339151305,2.4982,2627.2,2626.7,2.66485]
[1723339152285,3.0,2627.3,2626.7,2.66485]
[1723339152484,3.0,2627.3,2626.9,2.66472]
[1723339152900,3.0,2627.3,2626.7,2.66485]
[1723339153089,3.0,2627.3,2626.6,3.2906]
[1723339154012,2.66449,2627.2,2626.6,4.97756]
[1723339154215,2.66449,2627.2,2626.7,2.66493]
[1723339156781,2.66454,2627.1,2626.6,2.3126]
[1723339157200,2.66449,2627.2,2626.6,4.97762]
[1723339159478,2.66449,2627.2,2626.6,2.3126]
[1723339159691,2.66449,2627.2,2626.6,4.97763]
[1723339160717,5.32899,2627.2,2626.6,4.97763]
[1723339160922,5.32899,2627.2,2626.6,2.3126]
[1723339163524,2.66501,2626.7,2626.4,0.6009551]
[1723339163691,2.66511,2626.6,2626.4,0.6009551]
[1723339163888,3.64311,2626.6,2626.4,0.00450648]
[1723339164095,5.33028,2626.5,2626.4,0.00450648]
[1723339164290,7.72048,2626.5,2626.4,0.00450648]
[1723339164648,10.72048,2626.5,2626.4,0.00450648]
[1723339164994,3.0,2626.5,2626.4,0.00450648]
[1723339165305,8.05534,2626.5,2626.4,0.00450648]
[1723339165622,10.72048,2626.5,2626.4,0.00450648]
[1723339167100,13.38562,2626.5,2626.4,0.00450648]
[1723339173429,14.36362,2626.5,2626.4,0.00450648]
[1723339174932,14.91362,2626.5,2626.4,0.00450648]
[1723339187663,17.57876,2626.5,2626.4,0.00450648]
[1723339188469,2.66615,2625.5,2625.4,2.4141]
[1723339188685,3.64415,2625.5,2625.4,2.4141]
[1723339188980,2.66615,2625.5,2625.4,2.4141]
[1723339189355,3.64397,2625.7,2625.4,2.4141]
[1723339190158,3.64397,2625.7,2624.8,0.59679604]
[1723339190159,2.66653,2625.2,2624.9,2.4141]
[1723339190368,3.64453,2625.2,2624.9,2.4141]
[1723339192193,2.66666,2625.0,2624.9,2.4141]
[1723339192398,3.64466,2625.0,2624.9,2.4141]
[1723339193657,0.978,2625.0,2624.9,2.4141]
[1723339194165,0.978,2625.4,2625.0,2.4141]
[1723339194391,3.0,2625.4,2625.0,2.4141]
[1723339194853,5.66633,2625.4,2625.0,2.4141]
[1723339195046,0.978,2625.3,2625.0,2.4141]
[1723339196398,3.64436,2625.3,2625.0,2.4141]
[1723339196594,3.0,2625.2,2625.0,2.4141]
[1723339196894,3.64456,2625.1,2624.5,2.3699]
[1723339197098,3.64456,2625.1,2624.6,0.503712]
[1723339197253,6.3112,2625.1,2624.6,0.503712]
[1723339197473,3.64456,2625.1,2624.6,0.503712]
[1723339198041,3.64456,2625.1,2624.5,2.3699]
[1723339198042,3.64484,2624.9,2624.5,2.3699]
[1723339198312,2.66687,2624.8,2624.5,2.3699]
[1723339198734,3.64497,2624.7,2624.5,2.3699]
[1723339198933,2.66723,2624.5,2624.1,2.3699]
[1723339199228,0.978,2624.3,2624.1,2.3699]
[1723339199919,3.6454,2624.3,2624.1,2.3699]
[1723339200912,5.66719,2624.5,2624.1,2.3699]
[1723339201214,0.978,2624.3,2624.1,2.3699]
[1723339201428,3.64544,2624.3,2624.1,2.3699]
[1723339201631,3.0,2624.2,2623.7,2.3699]
[1723339201939,3.64569,2624.0,2623.7,2.3699]
[1723339202213,2.66788,2623.8,2623.7,2.3699]
[1723339202378,2.66788,2623.8,2623.2,0.1254705]
[1723339202379,2.66809,2623.6,2623.3,2.3699]
[1723339202579,0.978,2623.5,2623.3,2.3699]
[1723339202785,0.978,2623.7,2623.3,2.3699]
[1723339204197,2.66788,2623.8,2623.3,2.3699]
[1723339204401,0.978,2623.7,2623.3,2.3699]
[1723339204907,3.64599,2623.7,2623.3,2.3699]
[1723339205127,0.978,2623.7,2623.3,2.3699]
[1723339205438,2.66788,2623.8,2623.3,2.62962105]
[1723339205745,2.4366,2624.0,2623.3,2.3699]
[1723339205917,5.33628,2623.6,2623.3,2.3699]
[1723339206242,2.6681,2623.6,2623.3,2.3699]
[1723339206725,2.66776,2624.0,2623.4,2.3699]
[1723339207043,3.0,2624.1,2623.6,2.3699]
[1723339207044,3.0,2623.9,2623.6,2.3699]
[1723339207254,9.7366,2624.6,2623.6,2.3699]
[1723339207255,2.66693,2624.8,2624.1,2.3699]
[1723339207398,2.66714,2624.6,2624.1,2.3699]
[1723339207869,2.66691,2624.8,2624.1,2.3699]
[1723339208069,2.66691,2624.8,2624.2,2.3699]
[1723339208369,2.66691,2624.8,2624.3,2.3699]
[1723339208922,4.7906,2625.2,2624.3,2.3699]
[1723339208923,2.66676,2624.9,2624.3,2.3699]
[1723339209119,5.66687,2624.8,2624.3,2.873637]
[1723339210235,2.66698,2624.7,2624.3,2.873637]
[1723339210449,2.66698,2624.7,2624.3,2.3699]
[1723339210450,5.6671,2624.6,2624.3,2.3699]
[1723339210653,3.0,2624.6,2624.3,2.3699]
[1723339211546,2.66681,2624.9,2624.3,2.3699]
[1723339211547,3.0,2624.8,2624.3,2.3699]
[1723339212119,5.66688,2624.8,2624.3,2.3699]
[1723339212445,3.0,2624.8,2624.3,2.3699]
[1723339212818,2.66697,2624.7,2624.3,2.3699]
[1723339213014,3.0,2624.8,2624.3,2.60689]
[1723339213220,2.66657,2625.1,2624.5,2.66709]
[1723339213423,2.6664,2625.3,2624.6,2.3699]
[1723339213621,2.66656,2625.1,2624.6,2.3699]
[1723339214058,2.6664,2625.3,2624.6,5.807381]
[1723339214261,2.6664,2625.3,2624.8,2.66685]
[1723339214475,2.6664,2625.3,2624.4,0.07619829]
[1723339214476,2.66663,2625.1,2624.9,2.3699]
[1723339215166,2.6664,2625.3,2624.9,2.3699]
[1723339215322,2.66666,2625.0,2624.2,2.66741]
[1723339215523,2.66703,2624.7,2624.1,2.3756]
[1723339217131,2.6672,2624.5,2624.1,2.3756]
[1723339217331,2.66703,2624.7,2624.1,2.3756]
[1723339217332,2.66708,2624.6,2624.1,2.3756]
[1723339217731,2.66721,2624.5,2624.1,2.3756]
[1723339219755,2.66731,2624.4,2624.1,2.3756]
[1723339220533,2.66747,2624.2,2623.7,2.3756]
[1723339220755,3.0,2624.3,2623.7,2.3756]
[1723339220956,2.66788,2623.8,2623.3,2.3756]
[1723339221533,2.66805,2623.7,2623.3,2.3756]
[1723339222124,5.6681,2623.6,2623.3,2.3756]
[1723339222570,3.0,2623.6,2623.4,2.66828]
[1723339222774,2.66771,2624.0,2623.5,2.3756]
[1723339223063,3.0,2623.9,2623.5,5.04377]
[1723339223261,3.0,2624.0,2623.5,5.04377]
[1723339223440,3.0,2624.0,2623.5,2.3756]
[1723339223860,2.66779,2623.9,2623.5,2.3756]
[1723339224064,3.0,2623.8,2623.5,2.3756]
[1723339224500,3.0,2623.9,2623.5,2.3756]
[1723339224657,7.3,2624.1,2623.7,2.4783]
[1723339224861,3.0,2624.0,2623.7,2.4783]
[1723339225663,7.3,2624.1,2623.7,2.4783]
[1723339225861,7.3,2624.1,2624.0,2.66768]
[1723339226062,7.3,2624.1,2623.9,5.14607]
[1723339226063,9.967,2624.7,2624.1,2.66753]
[1723339226263,2.66708,2624.6,2623.9,2.4783]
[1723339226770,2.66743,2624.3,2623.9,2.4783]
[1723339227170,2.66772,2624.0,2623.5,2.4783]
[1723339227603,8.33509,2624.2,2623.5,5.14648]
[1723339227785,5.66754,2624.2,2623.5,5.14648]
[1723339228692,2.66759,2624.1,2623.5,5.14648]
[1723339230481,5.33548,2624.0,2623.5,2.4783]
[1723339231074,2.66781,2623.9,2623.5,2.4783]
[1723339231277,2.66791,2623.8,2623.5,2.4783]
[1723339232004,2.66808,2623.6,2623.2,2.6037705]
[1723339232305,0.06691703,2623.5,2623.2,2.6037705]
[1723339233203,0.06691703,2623.5,2623.2,5.2722605]
[1723339233407,2.66791,2623.8,2623.2,5.2722605]
[1723339233607,0.06690917,2623.7,2623.2,5.2722605]
[1723339233976,0.06690917,2623.7,2623.2,2.6037705]
[1723339234288,2.66809,2623.6,2623.2,2.6037705]
[1723339234673,0.06683266,2623.5,2623.2,2.6037705]
[1723339235781,2.66791,2623.8,2623.2,2.6037705]
[1723339235981,0.06688288,2623.7,2623.2,2.6037705]
[1723339236186,3.0,2623.8,2623.4,2.4757]
[1723339236504,0.06688288,2623.7,2623.4,2.4757]
[1723339238009,0.06688288,2623.7,2623.4,5.14398]
[1723339238388,0.06688288,2623.7,2623.5,2.6681]
[1723339238590,0.06688288,2623.7,2623.6,2.4757]
[1723339238787,9.96752,2624.2,2623.8,2.66779]
[1723339238788,7.3,2624.2,2623.8,2.66779]
[1723339239030,7.3,2624.2,2623.5,0.26681]
[1723339239031,0.06681456,2624.1,2623.9,2.55191825]
[1723339239244,7.3,2624.7,2624.4,2.4757]
[1723339239422,0.06466836,2624.6,2624.4,2.4757]
[1723339239617,14.85673,2625.0,2624.4,2.4757]
[1723339239923,2.66695,2624.8,2624.4,2.4757]
[1723339240254,0.06480249,2624.7,2624.0,2.4757]
[1723339240558,2.66717,2624.5,2624.0,2.4757]
[1723339240932,0.06474823,2624.4,2624.0,5.14336]
[1723339241123,0.06474823,2624.4,2624.0,5.924466]
[1723339241323,3.0,2624.6,2624.0,5.924466]
[1723339241521,0.06481978,2624.3,2624.0,5.924466]
[1723339241719,3.0,2624.6,2624.1,2.66751]
[1723339241949,0.06479996,2624.2,2624.1,2.66751]
[1723339242157,3.0,2624.6,2624.1,3.5267116]
[1723339242327,0.06479475,2624.2,2624.1,3.5267116]
[1723339242671,15.19,2625.0,2624.5,2.4757]
[1723339242953,3.0,2624.9,2624.5,2.4757]
[1723339245839,3.0,2624.9,2624.5,5.14286]
[1723339246573,3.0,2624.9,2624.7,2.66696]
[1723339246778,3.0,2625.2,2624.7,2.66696]
[1723339247166,7.3,2625.4,2624.8,0.07619383]
[1723339247374,9.96628,2625.4,2624.9,2.4757]
[1723339248248,2.66637,2625.3,2624.9,2.4757]
[1723339248649,5.66652,2625.2,2624.9,2.4757]
[1723339249189,3.0,2625.2,2624.9,2.4757]
[1723339250954,2.66657,2625.1,2624.9,2.4757]
[1723339251479,3.0,2625.2,2624.9,2.4757]
[1723339252051,5.66648,2625.2,2624.9,2.4757]
[1723339253685,3.0,2625.2,2624.9,2.4757]
[1723339253884,0.06539483,2625.1,2624.9,2.4757]
[1723339254297,5.66637,2625.3,2624.9,2.4757]
[1723339254498,0.06547688,2625.0,2624.9,2.4757]
[1723339254698,5.66637,2625.3,2624.9,2.4757]
[1723339254897,0.06547688,2625.0,2624.9,2.4757]
[1723339255101,5.66637,2625.3,2624.9,2.4757]
[1723339255298,0.06547688,2625.0,2624.9,2.4757]
[1723339255597,3.0,2625.1,2624.9,2.4757]
[1723339255803,2.73213688,2625.0,2624.6,2.2563]
[1723339256009,0.06547688,2625.0,2624.2,2.2563]
[1723339256174,2.66683,2624.9,2624.2,4.92371]
[1723339256364,0.06438864,2624.8,2624.2,4.92371]
[1723339256782,2.73126864,2624.8,2624.2,2.2563]
[1723339256985,2.73126864,2624.8,2624.2,4.9237]
[1723339257579,0.06438864,2624.8,2624.4,2.66721]
[1723339257785,0.06438864,2624.8,2624.6,2.2563]
[1723339257984,0.06428804,2624.7,2624.6,2.2563]
[1723339258190,3.0,2625.1,2624.6,2.2563]
[1723339258395,5.66658,2625.1,2624.6,2.2563]
[1723339258572,0.06434749,2625.0,2624.6,2.2563]
[1723339259696,0.06434749,2625.0,2624.6,4.92335]
[1723339260004,0.06434749,2625.0,2624.8,2.2563]
[1723339260529,3.0,2625.3,2624.8,4.99928844]
[1723339260678,0.06431012,2624.9,2624.8,8.35659084]
[1723339261011,3.0,2625.3,2624.9,2.6667]
[1723339261176,3.0,2625.3,2624.9,2.74288377]
[1723339261527,7.3,2625.4,2625.1,2.2563]
[1723339261752,7.3,2625.4,2625.1,4.9228]
[1723339261898,7.3,2625.4,2625.1,2.2563]
[1723339262297,9.96589,2625.8,2625.1,4.92285]
[1723339262503,7.3,2625.8,2625.3,2.66631]
[1723339263051,2.66577,2625.9,2625.4,2.2563]
[1723339264413,3.0,2625.8,2625.4,2.2563]
[1723339265412,2.66541,2626.3,2625.7,2.66595]
[1723339265714,2.66541,2626.3,2625.5,2.2563]
[1723339265715,2.66561,2626.1,2625.6,0.0761645]
[1723339266711,2.66561,2626.1,2625.5,2.2563]
[1723339266712,5.66565,2626.0,2625.5,2.2563]
[1723339266909,3.0,2626.0,2625.5,4.99854448]
[1723339267146,3.0,2626.1,2625.6,2.66599]
[1723339267448,3.0,2626.1,2625.7,2.66587]
[1723339267649,3.0,2626.2,2625.7,2.66587]
[1723339268354,2.66539,2626.3,2625.7,2.66587]
[1723339268528,2.66519,2626.5,2625.9,2.66568]
[1723339268852,2.66495,2626.7,2626.0,2.66564]
[1723339268853,0.06538659,2626.4,2626.0,2.66564]
[1723339269062,2.66512,2626.6,2625.9,2.66568]
[1723339269364,2.354,2626.8,2625.9,2.66568]
[1723339269365,2.66525,2626.4,2625.9,2.66568]
[1723339269545,2.73063638,2626.5,2625.9,2.66568]
[1723339269745,0.0653668,2626.3,2625.9,2.66568]
[1723339269924,3.06538659,2626.4,2625.9,2.66568]
[1723339270127,0.065347,2626.2,2625.9,2.66568]
[1723339270323,0.0653668,2626.3,2625.9,2.66568]
[1723339270547,0.06532721,2626.1,2625.9,2.66568]
[1723339270746,3.0,2626.4,2625.9,2.66568]
[1723339270958,0.06530741,2626.0,2625.9,3.43208575]
[1723339271164,2.66498,2626.7,2626.1,2.6655]
[1723339271725,2.66498,2626.7,2626.2,2.66544]
[1723339271950,2.66498,2626.7,2626.1,2.66547]
[1723339272259,2.6651,2626.6,2626.0,2.2563]
[1723339272560,3.0,2626.5,2626.0,2.2563]
[1723339272783,3.0,2626.5,2626.0,4.92193]
[1723339273056,3.0,2626.6,2626.0,4.99808367]
[1723339274176,3.0,2626.6,2626.1,2.66546]
[1723339275358,2.66464,2627.0,2626.3,2.66532]
[1723339275666,4.7592,2627.4,2626.5,5.01208]
[1723339275667,2.66452,2627.2,2626.5,5.01208]
[1723339275844,2.66438,2627.3,2626.5,5.01208]
[1723339275845,2.66453,2627.1,2626.5,5.01208]
[1723339276049,2.66453,2627.1,2626.5,7.67715]
[1723339276267,2.66453,2627.1,2626.5,5.01207]
[1723339276699,3.0,2627.0,2626.5,5.01207]
[1723339277566,3.0,2627.0,2626.7,2.66493]
[1723339277766,3.0,2627.2,2626.8,2.347]
[1723339278712,2.66462,2627.1,2626.8,2.347]
[1723339278919,3.0,2627.0,2626.8,2.347]
[1723339279568,3.0,2627.0,2626.5,5.01206]
[1723339283404,3.0,2627.0,2626.6,2.347]
[1723339283603,3.0,2627.2,2626.7,2.66487]
[1723339283772,3.0,2627.4,2626.8,2.347]
[1723339283971,0.06607763,2627.1,2626.8,2.347]
[1723339284172,9.96417,2627.5,2627.0,2.66462]
[1723339284507,0.06613177,2627.4,2626.9,2.66472]
[1723339284973,0.06613177,2627.4,2627.0,2.347]
[1723339285908,3.06613177,2627.4,2627.0,2.347]
[1723339289408,0.06613177,2627.4,2627.1,0.501172]
[1723339289581,0.06613177,2627.4,2627.1,3.165692]
[1723339289778,3.0,2627.5,2627.1,3.165692]
[1723339290296,0.06658231,2627.4,2627.1,3.165692]
[1723339291277,0.06658231,2627.4,2627.2,2.66441]
[1723339291514,0.06658231,2627.4,2627.2,0.82532283]
[1723339291909,0.06658231,2627.4,2627.1,2.66452]
[1723339291910,2.66403,2627.6,2627.0,2.347]
[1723339292121,0.0666712,2627.3,2626.7,5.0119]
[1723339292282,2.66449,2627.2,2626.7,2.347]
[1723339292613,0.06663164,2627.1,2626.7,5.513129]
[1723339292793,0.06663164,2627.1,2626.7,2.848209]
[1723339292996,2.66449,2627.2,2626.7,2.848209]
[1723339293190,2.66449,2627.2,2626.5,2.66506]
[1723339293191,3.0,2627.1,2626.5,5.01206]
[1723339293397,3.06658256,2627.1,2626.5,5.01206]
[1723339293596,5.73121256,2627.1,2626.5,5.01206]
[1723339294414,2.66482,2626.9,2626.5,2.347]
[1723339294826,0.06649517,2626.8,2626.5,2.347]
[1723339295122,0.06649517,2626.8,2625.9,7.35]
[1723339295123,2.66502,2626.7,2626.0,2.3382]
[1723339295290,2.66502,2626.7,2626.0,3.0732]
[1723339295291,2.66521,2626.5,2626.0,3.0732]
[1723339295499,2.73161785,2626.4,2626.0,3.0732]
[1723339295689,0.06631785,2626.4,2626.0,3.0732]
[1723339295895,2.66509,2626.6,2626.0,3.0732]
[1723339296232,0.06623597,2626.5,2626.0,3.0732]
[1723339296396,2.73139597,2626.5,2626.0,3.0732]
[1723339297419,2.66525,2626.4,2626.0,3.0732]
[1723339297784,0.06606313,2626.3,2626.0,3.0732]
[1723339299124,0.06606313,2626.3,2626.0,2.3382]
[1723339304331,2.73149313,2626.3,2626.0,2.3382]
[1723339304530,0.06606313,2626.3,2625.7,5.00407]
[1723339304721,0.06606313,2626.3,2625.7,7.66996]
[1723339305035,0.06606313,2626.3,2625.8,0.77461225]
[1723339305506,2.73143313,2626.3,2625.8,0.77461225]
[1723339306302,2.73143313,2626.3,2626.0,2.66563]
[1723339306303,0.06606313,2626.3,2626.0,2.66563]
[1723339306501,5.33019,2626.6,2626.0,2.66563]
[1723339306502,3.0,2626.5,2626.0,2.66563]
[1723339306713,0.06570762,2626.4,2626.0,3.25109036]
[1723339306954,0.06570762,2626.4,2626.1,5.00366]
[1723339307457,3.0,2626.7,2626.3,2.3382]
[1723339309350,5.66495,2626.7,2626.3,2.3382]
[1723339309924,3.0,2626.7,2626.3,2.3382]
[1723339310124,3.0,2626.7,2626.3,2.83856]
[1723339311337,2.66467,2627.0,2626.3,2.83856]
[1723339311638,2.66467,2627.0,2626.4,2.66516]
[1723339312555,5.32938,2627.0,2626.5,0.07613787]
[1723339312726,5.66474,2626.9,2626.4,2.66516]
[1723339312928,3.0,2626.9,2626.5,0.500336]
[1723339313453,2.66495,2626.7,2626.3,2.3382]
[1723339313642,2.66491,2626.8,2626.3,2.3382]
[1723339313966,2.66506,2626.6,2626.3,2.3382]
[1723339314398,0.06595131,2626.5,2626.3,2.3382]
[1723339317500,2.66537,2626.3,2625.9,2.3653]
[1723339317704,2.66524,2626.4,2625.9,2.3653]
[1723339317914,0.06587329,2626.2,2625.9,2.3653]
[1723339318059,0.06581591,2626.3,2625.9,2.868405]
[1723339318256,2.66524,2626.4,2625.9,2.868405]
[1723339318707,0.06580188,2626.3,2625.9,2.868405]
[1723339318865,2.73115188,2626.3,2625.9,2.3653]
[1723339319802,0.06580188,2626.3,2625.9,2.3653]
[1723339321003,2.73120188,2626.3,2625.9,2.3653]
[1723339321177,2.6655,2626.2,2625.9,2.3653]
[1723339321571,0.06570266,2626.1,2625.9,2.3653]
[1723339324117,2.6651,2626.6,2626.0,0.503113]
[1723339324320,3.06571167,2626.5,2626.1,2.3653]
[1723339324524,5.73092167,2626.5,2626.1,2.3653]
[1723339326691,2.66525,2626.4,2626.1,2.3653]
[1723339327113,0.06569483,2626.3,2626.1,2.3653]
[1723339328205,0.06569483,2626.3,2625.7,2.66591]
[1723339328522,0.06569483,2626.3,2625.8,2.3653]
[1723339330036,2.73109483,2626.3,2625.8,2.3653]
[1723339331244,2.66547,2626.2,2625.8,2.3653]
[1723339331938,0.06564302,2626.1,2625.8,2.3653]
[1723339333661,2.66534,2626.3,2625.8,2.3653]
[1723339333806,0.06558462,2626.0,2625.8,3.3330691]
[1723339334004,2.66534,2626.3,2625.8,3.3330691]
[1723339334210,0.06556483,2625.9,2625.8,3.3330691]
[1723339334843,2.66534,2626.3,2625.8,3.3330691]
[1723339335006,0.06556483,2625.9,2625.8,3.3330691]
[1723339335334,2.66534,2626.3,2625.8,3.3330691]
[1723339335718,0.06562422,2626.2,2625.8,3.3330691]
[1723339335906,2.66534,2626.3,2625.8,3.3330691]